[Event "Titled Tuesday Blitz June 6 Early 2023"]
[White "Bashirli, Saadat"]
[Black "Pajeken, Jakob Leon"]
[WhiteFideId "13429990"]
[BlackFideId "12942839"]
[WhiteElo "1408"]
[BlackElo "2424"]
[Result "1-0"]
[Round "1"]
[TimeControl "180+2"]
[Date "2023.06.06"]
[WhiteClock "0:00:08"]
[BlackClock "0:00:01"]
[Board "159"]

1. d4 {[%clk 0:02:56]}  d5 {[%clk 0:02:58]} 2. e3 {[%clk 0:02:56]}  Nf6 {[%clk 0:02:55]} 3. f4 {[%clk 0:02:55]}  Bf5 {[%clk 0:02:44]} 4. Bd3 {[%clk 0:02:54]}  Bxd3 {[%clk 0:02:24]} 5. cxd3 {[%clk 0:02:55]}  c6 {[%clk 0:02:17]} 6. Nc3 {[%clk 0:02:51]}  e6 {[%clk 0:02:12]} 7. Nf3 {[%clk 0:02:48]}  Nbd7 {[%clk 0:02:11]} 8. O-O {[%clk 0:02:47]}  Qb6 {[%clk 0:02:10]} 9. Kh1 {[%clk 0:02:46]}  h5 {[%clk 0:02:06]} 10. e4 {[%clk 0:02:45]}  Bb4 {[%clk 0:01:59]} 11. Re1 {[%clk 0:02:39]}  Qa5 {[%clk 0:01:57]} 12. Bd2 {[%clk 0:02:37]}  Bxc3 {[%clk 0:01:47]} 13. bxc3 {[%clk 0:02:36]}  Qa6 {[%clk 0:01:45]} 14. Qc2 {[%clk 0:02:34]}  O-O {[%clk 0:01:37]} 15. c4 {[%clk 0:02:30]}  b5 {[%clk 0:01:35]} 16. Rac1 {[%clk 0:02:04]}  bxc4 {[%clk 0:01:31]} 17. dxc4 {[%clk 0:02:03]}  Nxe4 {[%clk 0:01:30]} 18. Be3 {[%clk 0:01:56]}  Ndf6 {[%clk 0:01:29]} 19. Ne5 {[%clk 0:01:53]}  Ng4 {[%clk 0:01:24]} 20. Nxg4 {[%clk 0:01:44]}  hxg4 {[%clk 0:01:23]} 21. Qe2 {[%clk 0:01:41]}  f5 {[%clk 0:01:21]} 22. Kg1 {[%clk 0:01:30]}  Rfc8 {[%clk 0:01:18]} 23. h3 {[%clk 0:01:21]}  gxh3 {[%clk 0:01:13]} 24. gxh3 {[%clk 0:01:22]}  Qa3 {[%clk 0:01:11]} 25. Kh2 {[%clk 0:01:19]}  Rab8 {[%clk 0:01:10]} 26. Rc2 {[%clk 0:01:15]}  c5 {[%clk 0:00:57]} 27. dxc5 {[%clk 0:01:11]}  d4 {[%clk 0:00:57]} 28. Bxd4 {[%clk 0:01:01]}  Qg3+ {[%clk 0:00:55]} 29. Kh1 {[%clk 0:01:00]}  Qxh3+ {[%clk 0:00:55]} 30. Qh2 {[%clk 0:00:59]}  Qf3+ {[%clk 0:00:27]} 31. Qg2 {[%clk 0:00:58]}  Qh5+ {[%clk 0:00:27]} 32. Kg1 {[%clk 0:00:56]}  Rb7 {[%clk 0:00:26]} 33. Re3 {[%clk 0:00:47]}  g6 {[%clk 0:00:21]} 34. Re1 {[%clk 0:00:45]}  Rh7 {[%clk 0:00:20]} 35. Kf1 {[%clk 0:00:37]}  Kf7 {[%clk 0:00:18]} 36. Rb2 {[%clk 0:00:35]}  Rc7 {[%clk 0:00:17]} 37. Be5 {[%clk 0:00:31]}  Rd7 {[%clk 0:00:15]} 38. c6 {[%clk 0:00:29]}  Re7 {[%clk 0:00:15]} 39. c7 {[%clk 0:00:29]}  Re8 {[%clk 0:00:15]} 40. Rb8 {[%clk 0:00:27]}  Nd2+ {[%clk 0:00:09]} 41. Kf2 {[%clk 0:00:21]}  Ne4+ {[%clk 0:00:09]} 42. Rxe4 {[%clk 0:00:20]}  Qh4+ {[%clk 0:00:08]} 43. Ke3 {[%clk 0:00:18]}  Qe1+ {[%clk 0:00:07]} 44. Qe2 {[%clk 0:00:13]}  Qc1+ {[%clk 0:00:06]} 45. Kd4 {[%clk 0:00:11]}  fxe4 {[%clk 0:00:03]} 46. Rxe8 {[%clk 0:00:10]}  Qg1+ {[%clk 0:00:02]} 47. Qe3 {[%clk 0:00:09]}  Qa1+ {[%clk 0:00:01]} 48. Kc5 {[%clk 0:00:09]}  Qxa2 {[%clk 0:00:01]} 49. Rf8+ {[%clk 0:00:08]} 1-0


[Site "https://www.chess.com"]

[Event "Titled Tuesday Blitz June 6 Early 2023"]
[White "Wadsworth, Matthew J"]
[Black "Martin, Lewis"]
[WhiteFideId "415804"]
[BlackFideId "410551"]
[WhiteElo "2347"]
[BlackElo "2145"]
[Result "1-0"]
[Round "1"]
[TimeControl "180+2"]
[Date "2023.06.06"]
[WhiteClock "0:00:49"]
[BlackClock "0:00:57"]
[Board "162"]

1. c4 {[%clk 0:02:53]}  c6 {[%clk 0:02:57]} 2. g3 {[%clk 0:02:53]}  d5 {[%clk 0:02:56]} 3. Nf3 {[%clk 0:02:53]}  Nf6 {[%clk 0:02:56]} 4. Bg2 {[%clk 0:02:54]}  e6 {[%clk 0:02:52]} 5. O-O {[%clk 0:02:51]}  Be7 {[%clk 0:02:50]} 6. b3 {[%clk 0:02:44]}  O-O {[%clk 0:02:47]} 7. Bb2 {[%clk 0:02:44]}  Nbd7 {[%clk 0:02:43]} 8. d4 {[%clk 0:02:43]}  b6 {[%clk 0:02:37]} 9. Nc3 {[%clk 0:02:43]}  Bb7 {[%clk 0:02:30]} 10. Qc2 {[%clk 0:02:29]}  Rc8 {[%clk 0:02:27]} 11. e4 {[%clk 0:02:25]}  dxe4 {[%clk 0:02:24]} 12. Nxe4 {[%clk 0:02:25]}  Nxe4 {[%clk 0:02:24]} 13. Qxe4 {[%clk 0:02:25]}  Nf6 {[%clk 0:02:25]} 14. Qc2 {[%clk 0:02:20]}  c5 {[%clk 0:02:24]} 15. Rad1 {[%clk 0:02:16]}  Qc7 {[%clk 0:02:21]} 16. d5 {[%clk 0:02:13]}  exd5 {[%clk 0:02:17]} 17. Be5 {[%clk 0:02:12]}  Qd7 {[%clk 0:02:04]} 18. Ng5 {[%clk 0:02:07]}  g6 {[%clk 0:01:52]} 19. Bh3 {[%clk 0:01:49]}  Qe8 {[%clk 0:01:48]} 20. Rfe1 {[%clk 0:01:45]}  Qc6 {[%clk 0:01:36]} 21. Bg2 {[%clk 0:01:20]}  Rfe8 {[%clk 0:01:22]} 22. cxd5 {[%clk 0:01:10]}  Qb5 {[%clk 0:01:06]} 23. a4 {[%clk 0:00:59]}  Qb4 {[%clk 0:01:00]} 24. d6 {[%clk 0:00:52]}  Bd8 {[%clk 0:00:57]} 25. Bxb7 {[%clk 0:00:49]} 1-0


[Site "https://www.chess.com"]

[Event "Titled Tuesday Blitz June 6 Early 2023"]
[White "Dubreuil, Julien"]
[Black "Shohat, Yotam"]
[WhiteFideId "621285"]
[BlackFideId "2813955"]
[WhiteElo "2259"]
[BlackElo "2226"]
[Result "0-1"]
[Round "1"]
[TimeControl "180+2"]
[Date "2023.06.06"]
[WhiteClock "0:00:42"]
[BlackClock "0:01:17"]
[Board "167"]

1. e4 {[%clk 0:02:22]}  e5 {[%clk 0:02:57]} 2. Nf3 {[%clk 0:02:22]}  Nc6 {[%clk 0:02:52]} 3. d4 {[%clk 0:02:22]}  exd4 {[%clk 0:02:51]} 4. Nxd4 {[%clk 0:02:23]}  Bc5 {[%clk 0:02:51]} 5. Nb3 {[%clk 0:02:23]}  Bb6 {[%clk 0:02:51]} 6. Nc3 {[%clk 0:02:23]}  Nf6 {[%clk 0:02:52]} 7. Qe2 {[%clk 0:02:24]}  d6 {[%clk 0:02:50]} 8. Be3 {[%clk 0:02:23]}  Bxe3 {[%clk 0:02:47]} 9. Qxe3 {[%clk 0:02:23]}  a6 {[%clk 0:02:43]} 10. O-O-O {[%clk 0:02:23]}  Be6 {[%clk 0:02:42]} 11. f3 {[%clk 0:02:18]}  Qe7 {[%clk 0:02:39]} 12. g4 {[%clk 0:02:18]}  O-O-O {[%clk 0:02:35]} 13. Nd4 {[%clk 0:02:17]}  Nxd4 {[%clk 0:02:33]} 14. Qxd4 {[%clk 0:02:16]}  Kb8 {[%clk 0:02:34]} 15. Bc4 {[%clk 0:02:15]}  Bxc4 {[%clk 0:02:17]} 16. Qxc4 {[%clk 0:02:16]}  Qe5 {[%clk 0:02:17]} 17. Kb1 {[%clk 0:02:14]}  h5 {[%clk 0:01:59]} 18. g5 {[%clk 0:02:05]}  Qxg5 {[%clk 0:01:57]} 19. Qxf7 {[%clk 0:02:06]}  Rhf8 {[%clk 0:01:55]} 20. Qc4 {[%clk 0:02:02]}  Qc5 {[%clk 0:01:32]} 21. Qxc5 {[%clk 0:01:58]}  dxc5 {[%clk 0:01:33]} 22. Rdg1 {[%clk 0:01:50]}  Nd7 {[%clk 0:01:28]} 23. Rg3 {[%clk 0:01:47]}  Ne5 {[%clk 0:01:28]} 24. Rf1 {[%clk 0:01:41]}  Rf7 {[%clk 0:01:27]} 25. Kc1 {[%clk 0:01:39]}  Rdf8 {[%clk 0:01:27]} 26. Nd5 {[%clk 0:01:32]}  c6 {[%clk 0:01:24]} 27. Nc3 {[%clk 0:01:04]}  Nxf3 {[%clk 0:01:23]} 28. a4 {[%clk 0:00:55]}  g5 {[%clk 0:01:20]} 29. a5 {[%clk 0:00:54]}  g4 {[%clk 0:01:20]} 30. Na4 {[%clk 0:00:54]}  Ng5 {[%clk 0:01:18]} 31. Rxf7 {[%clk 0:00:52]}  Rxf7 {[%clk 0:01:19]} 32. h4 {[%clk 0:00:43]}  Rf1+ {[%clk 0:01:16]} 33. Kd2 {[%clk 0:00:42]}  Nxe4+ {[%clk 0:01:17]} 0-1


[Site "https://www.chess.com"]

[Event "Titled Tuesday Blitz June 6 Early 2023"]
[White "Schut, Han"]
[Black "Gheorghiu, Calin"]
[WhiteFideId "1005561"]
[BlackFideId "1200305"]
[WhiteElo "2024"]
[BlackElo "2204"]
[Result "1-0"]
[Round "1"]
[TimeControl "180+2"]
[Date "2023.06.06"]
[WhiteClock "0:00:15"]
[BlackClock "0:00:09"]
[Board "169"]

1. e4 {[%clk 0:02:59]}  c5 {[%clk 0:03:00]} 2. Nf3 {[%clk 0:02:59]}  a6 {[%clk 0:03:00]} 3. c4 {[%clk 0:02:59]}  d6 {[%clk 0:02:59]} 4. Nc3 {[%clk 0:02:59]}  Nf6 {[%clk 0:02:58]} 5. d4 {[%clk 0:03:00]}  cxd4 {[%clk 0:02:58]} 6. Nxd4 {[%clk 0:03:01]}  e6 {[%clk 0:02:58]} 7. Be2 {[%clk 0:02:57]}  Be7 {[%clk 0:02:58]} 8. Be3 {[%clk 0:02:56]}  O-O {[%clk 0:02:56]} 9. O-O {[%clk 0:02:54]}  Qc7 {[%clk 0:02:56]} 10. Rc1 {[%clk 0:02:53]}  b6 {[%clk 0:02:56]} 11. f3 {[%clk 0:02:52]}  Bb7 {[%clk 0:02:56]} 12. Qd2 {[%clk 0:02:53]}  Nbd7 {[%clk 0:02:56]} 13. Rfd1 {[%clk 0:02:52]}  Rac8 {[%clk 0:02:56]} 14. Bf1 {[%clk 0:02:53]}  Qb8 {[%clk 0:02:56]} 15. Qf2 {[%clk 0:02:51]}  Rfe8 {[%clk 0:02:55]} 16. Kh1 {[%clk 0:02:51]}  Bd8 {[%clk 0:02:54]} 17. Qg1 {[%clk 0:02:46]}  Bc7 {[%clk 0:02:52]} 18. Bf2 {[%clk 0:02:46]}  Qa8 {[%clk 0:02:42]} 19. b4 {[%clk 0:02:45]}  d5 {[%clk 0:02:40]} 20. cxd5 {[%clk 0:02:38]}  exd5 {[%clk 0:02:40]} 21. exd5 {[%clk 0:02:38]}  Nxd5 {[%clk 0:02:41]} 22. Nxd5 {[%clk 0:02:39]}  Bxd5 {[%clk 0:02:41]} 23. a3 {[%clk 0:02:31]}  Nf6 {[%clk 0:02:25]} 24. Nf5 {[%clk 0:02:18]}  Bxf3 {[%clk 0:02:06]} 25. Bxb6 {[%clk 0:02:00]}  Bxb6 {[%clk 0:01:56]} 26. Qxb6 {[%clk 0:01:50]}  Bxd1 {[%clk 0:01:47]} 27. Rxd1 {[%clk 0:01:42]}  Rcd8 {[%clk 0:01:38]} 28. Ra1 {[%clk 0:01:13]}  Re6 {[%clk 0:01:21]} 29. Qf2 {[%clk 0:01:13]}  Ne4 {[%clk 0:01:15]} 30. Qf4 {[%clk 0:01:04]}  Qa7 {[%clk 0:01:10]} 31. h3 {[%clk 0:00:54]}  Nf2+ {[%clk 0:00:47]} 32. Kh2 {[%clk 0:00:54]}  Rf6 {[%clk 0:00:43]} 33. Qg5 {[%clk 0:00:30]}  Qb8+ {[%clk 0:00:26]} 34. g3 {[%clk 0:00:29]}  Rg6 {[%clk 0:00:21]} 35. Ne7+ {[%clk 0:00:28]}  Kh8 {[%clk 0:00:19]} 36. Nxg6+ {[%clk 0:00:28]}  hxg6 {[%clk 0:00:19]} 37. Qf4 {[%clk 0:00:26]}  Qa7 {[%clk 0:00:14]} 38. Bxa6 {[%clk 0:00:21]}  Rd3 {[%clk 0:00:08]} 39. Bxd3 {[%clk 0:00:18]}  Nxd3 {[%clk 0:00:08]} 40. Qh4+ {[%clk 0:00:14]}  Kg8 {[%clk 0:00:08]} 41. Qd8+ {[%clk 0:00:15]}  Kh7 {[%clk 0:00:09]} 42. Qxd3 {[%clk 0:00:15]}  Qf2+ {[%clk 0:00:09]} 43. Kh1 {[%clk 0:00:15]} 1-0


[Site "https://www.chess.com"]

[Event "Titled Tuesday Blitz June 6 Early 2023"]
[White "MKlose11"]
[Black "MunichMouse"]
[WhiteElo "2564"]
[BlackElo "2255"]
[Result "1/2-1/2"]
[Round "1"]
[TimeControl "180+2"]
[Date "2023.06.06"]
[WhiteClock "0:00:14"]
[BlackClock "0:00:08"]
[Board "170"]

1. e4 {[%clk 0:02:57]}  c5 {[%clk 0:02:59]} 2. Nc3 {[%clk 0:02:55]}  a6 {[%clk 0:02:58]} 3. g3 {[%clk 0:02:56]}  e5 {[%clk 0:02:58]} 4. d3 {[%clk 0:02:55]}  Nc6 {[%clk 0:02:58]} 5. f4 {[%clk 0:02:55]}  d6 {[%clk 0:02:58]} 6. Bg2 {[%clk 0:02:55]}  g6 {[%clk 0:02:58]} 7. Nf3 {[%clk 0:02:55]}  Bg7 {[%clk 0:02:58]} 8. O-O {[%clk 0:02:56]}  Nge7 {[%clk 0:02:58]} 9. Nh4 {[%clk 0:02:56]}  f5 {[%clk 0:02:42]} 10. exf5 {[%clk 0:02:55]}  Nxf5 {[%clk 0:02:43]} 11. Nxf5 {[%clk 0:02:54]}  Bxf5 {[%clk 0:02:43]} 12. Bd5 {[%clk 0:02:46]}  Qd7 {[%clk 0:02:28]} 13. Be3 {[%clk 0:02:20]}  Ne7 {[%clk 0:02:25]} 14. Bg2 {[%clk 0:02:13]}  O-O-O {[%clk 0:01:56]} 15. Qd2 {[%clk 0:02:07]}  Bh3 {[%clk 0:01:53]} 16. Rae1 {[%clk 0:01:55]}  Rhf8 {[%clk 0:01:50]} 17. a3 {[%clk 0:01:25]}  Bxg2 {[%clk 0:01:49]} 18. Qxg2 {[%clk 0:01:22]}  Qc6 {[%clk 0:01:48]} 19. Ne4 {[%clk 0:01:04]}  Nf5 {[%clk 0:01:44]} 20. fxe5 {[%clk 0:00:55]}  Bxe5 {[%clk 0:01:32]} 21. c3 {[%clk 0:00:54]}  Qd5 {[%clk 0:01:22]} 22. Qe2 {[%clk 0:00:44]}  c4 {[%clk 0:01:10]} 23. Rd1 {[%clk 0:00:38]}  cxd3 {[%clk 0:01:03]} 24. Qxd3 {[%clk 0:00:37]}  Qxd3 {[%clk 0:01:02]} 25. Rxd3 {[%clk 0:00:38]}  Nxe3 {[%clk 0:00:57]} 26. Rxe3 {[%clk 0:00:25]}  Rxf1+ {[%clk 0:00:56]} 27. Kxf1 {[%clk 0:00:21]}  Rf8+ {[%clk 0:00:57]} 28. Ke2 {[%clk 0:00:16]}  Kc7 {[%clk 0:00:58]} 29. Rf3 {[%clk 0:00:16]}  Rxf3 {[%clk 0:00:56]} 30. Kxf3 {[%clk 0:00:17]}  Kc6 {[%clk 0:00:56]} 31. Ng5 {[%clk 0:00:15]}  h5 {[%clk 0:00:53]} 32. Ke4 {[%clk 0:00:15]}  Kc5 {[%clk 0:00:51]} 33. Kd3 {[%clk 0:00:11]}  d5 {[%clk 0:00:49]} 34. b3 {[%clk 0:00:10]}  b5 {[%clk 0:00:48]} 35. Nf7 {[%clk 0:00:07]}  Bc7 {[%clk 0:00:42]} 36. Nh8 {[%clk 0:00:07]}  g5 {[%clk 0:00:42]} 37. Nf7 {[%clk 0:00:07]}  g4 {[%clk 0:00:35]} 38. Ng5 {[%clk 0:00:05]}  Be5 {[%clk 0:00:28]} 39. Ne6+ {[%clk 0:00:06]}  Kd6 {[%clk 0:00:28]} 40. Nd8 {[%clk 0:00:05]}  Bf6 {[%clk 0:00:13]} 41. Nf7+ {[%clk 0:00:04]}  Ke7 {[%clk 0:00:13]} 42. Nh6 {[%clk 0:00:05]}  Ke6 {[%clk 0:00:12]} 43. c4 {[%clk 0:00:05]}  dxc4+ {[%clk 0:00:12]} 44. bxc4 {[%clk 0:00:06]}  bxc4+ {[%clk 0:00:12]} 45. Kxc4 {[%clk 0:00:07]}  Be7 {[%clk 0:00:12]} 46. a4 {[%clk 0:00:06]}  Bd6 {[%clk 0:00:09]} 47. Kd4 {[%clk 0:00:05]}  h4 {[%clk 0:00:09]} 48. Nxg4 {[%clk 0:00:04]}  hxg3 {[%clk 0:00:08]} 49. hxg3 {[%clk 0:00:03]}  Bxg3 {[%clk 0:00:09]} 50. Kc4 {[%clk 0:00:03]}  Kd6 {[%clk 0:00:08]} 51. Ne3 {[%clk 0:00:03]}  Kc6 {[%clk 0:00:07]} 52. Nd5 {[%clk 0:00:03]}  Be1 {[%clk 0:00:07]} 53. Ne3 {[%clk 0:00:02]}  Kb6 {[%clk 0:00:06]} 54. Nc2 {[%clk 0:00:03]}  Bd2 {[%clk 0:00:04]} 55. Kb3 {[%clk 0:00:03]}  Kc5 {[%clk 0:00:02]} 56. Na3 {[%clk 0:00:04]}  a5 {[%clk 0:00:02]} 57. Nc4 {[%clk 0:00:05]}  Bb4 {[%clk 0:00:01]} 58. Ne5 {[%clk 0:00:05]}  Kd4 {[%clk 0:00:02]} 59. Nc6+ {[%clk 0:00:05]}  Kc5 {[%clk 0:00:03]} 60. Ne7 {[%clk 0:00:05]}  Kd4 {[%clk 0:00:03]} 61. Ng6 {[%clk 0:00:06]}  Kc5 {[%clk 0:00:04]} 62. Nh4 {[%clk 0:00:06]}  Kb6 {[%clk 0:00:04]} 63. Nf5 {[%clk 0:00:07]}  Ka6 {[%clk 0:00:05]} 64. Kc4 {[%clk 0:00:07]}  Kb6 {[%clk 0:00:06]} 65. Kd5 {[%clk 0:00:08]}  Ka6 {[%clk 0:00:07]} 66. Ne3 {[%clk 0:00:07]}  Kb6 {[%clk 0:00:07]} 67. Nc4+ {[%clk 0:00:08]}  Ka6 {[%clk 0:00:07]} 68. Kc6 {[%clk 0:00:09]}  Ka7 {[%clk 0:00:08]} 69. Ne5 {[%clk 0:00:09]}  Ka6 {[%clk 0:00:08]} 70. Nd3 {[%clk 0:00:10]}  Ka7 {[%clk 0:00:08]} 71. Kb5 {[%clk 0:00:11]}  Kb7 {[%clk 0:00:08]} 72. Nf4 {[%clk 0:00:11]}  Ka7 {[%clk 0:00:08]} 73. Nd5 {[%clk 0:00:12]}  Kb7 {[%clk 0:00:09]} 74. Ne7 {[%clk 0:00:13]}  Ka7 {[%clk 0:00:09]} 75. Nc6+ {[%clk 0:00:14]}  Kb7 {[%clk 0:00:09]} 76. Nd4 {[%clk 0:00:14]}  Ka7 {[%clk 0:00:10]} 77. Kc6 {[%clk 0:00:13]}  Ka6 {[%clk 0:00:10]} 78. Ne6 {[%clk 0:00:14]}  Ka7 {[%clk 0:00:10]} 79. Kc7 {[%clk 0:00:14]}  Ka6 {[%clk 0:00:09]} 80. Nf4 {[%clk 0:00:12]}  Ka7 {[%clk 0:00:09]} 81. Nd5 {[%clk 0:00:13]}  Ka6 {[%clk 0:00:10]} 82. Kb8 {[%clk 0:00:14]}  Bd2 {[%clk 0:00:08]} 83. Kc8 {[%clk 0:00:14]}  Ka7 {[%clk 0:00:09]} 84. Kc7 {[%clk 0:00:14]}  Ka6 {[%clk 0:00:09]} 85. Kc6 {[%clk 0:00:15]}  Ka7 {[%clk 0:00:09]} 86. Kb5 {[%clk 0:00:15]}  Kb7 {[%clk 0:00:09]} 87. Ne7 {[%clk 0:00:16]}  Ka7 {[%clk 0:00:10]} 88. Kc6 {[%clk 0:00:15]}  Ka6 {[%clk 0:00:10]} 89. Nc8 {[%clk 0:00:15]}  Bc3 {[%clk 0:00:09]} 90. Nd6 {[%clk 0:00:15]}  Bd2 {[%clk 0:00:09]} 91. Kd5 {[%clk 0:00:15]}  Be1 {[%clk 0:00:08]} 92. Kc6 {[%clk 0:00:15]}  Ka7 {[%clk 0:00:09]} 93. Kd5 {[%clk 0:00:14]}  Ka6 {[%clk 0:00:09]} 94. Ke4 {[%clk 0:00:14]}  Kb6 {[%clk 0:00:09]} 95. Kd3 {[%clk 0:00:14]}  Kc5 {[%clk 0:00:08]} 96. Ne4+ {[%clk 0:00:13]}  Kb4 {[%clk 0:00:08]} 97. Nd6 {[%clk 0:00:13]}  Kxa4 {[%clk 0:00:08]} 98. Nb7 {[%clk 0:00:13]}  Kb5 {[%clk 0:00:08]} 99. Nxa5 {[%clk 0:00:14]} 1/2-1/2


[Site "https://www.chess.com"]

[Event "Titled Tuesday Blitz June 6 Early 2023"]
[White "Levitan, Caleb Levi"]
[Black "Degenbaev, Aziz"]
[WhiteFideId "14332620"]
[BlackFideId "13802640"]
[WhiteElo "1963"]
[BlackElo "2152"]
[Result "0-1"]
[Round "1"]
[TimeControl "180+2"]
[Date "2023.06.06"]
[WhiteClock "0:00:09"]
[BlackClock "0:00:16"]
[Board "171"]

1. e4 {[%clk 0:02:58]}  c5 {[%clk 0:02:57]} 2. Nf3 {[%clk 0:02:59]}  d6 {[%clk 0:02:58]} 3. d4 {[%clk 0:02:58]}  cxd4 {[%clk 0:02:58]} 4. Nxd4 {[%clk 0:02:59]}  Nf6 {[%clk 0:02:59]} 5. Nc3 {[%clk 0:02:59]}  a6 {[%clk 0:03:00]} 6. Bc4 {[%clk 0:02:59]}  e6 {[%clk 0:02:49]} 7. Bb3 {[%clk 0:02:59]}  b5 {[%clk 0:02:50]} 8. Qf3 {[%clk 0:02:58]}  Bb7 {[%clk 0:02:47]} 9. Bg5 {[%clk 0:02:43]}  Nbd7 {[%clk 0:02:46]} 10. O-O-O {[%clk 0:02:39]}  Nc5 {[%clk 0:02:35]} 11. Bxf6 {[%clk 0:02:17]}  Qxf6 {[%clk 0:02:33]} 12. Qxf6 {[%clk 0:02:14]}  gxf6 {[%clk 0:02:34]} 13. f3 {[%clk 0:02:14]}  Rg8 {[%clk 0:02:17]} 14. g4 {[%clk 0:02:06]}  Bh6+ {[%clk 0:02:11]} 15. Kb1 {[%clk 0:02:06]}  O-O-O {[%clk 0:02:11]} 16. a4 {[%clk 0:02:01]}  b4 {[%clk 0:02:06]} 17. Na2 {[%clk 0:01:58]}  a5 {[%clk 0:02:03]} 18. c3 {[%clk 0:01:58]}  bxc3 {[%clk 0:01:27]} 19. Nxc3 {[%clk 0:01:59]}  Bf4 {[%clk 0:01:21]} 20. Bc2 {[%clk 0:01:39]}  Be5 {[%clk 0:01:13]} 21. Ndb5 {[%clk 0:01:37]}  f5 {[%clk 0:01:09]} 22. gxf5 {[%clk 0:01:28]}  Rg2 {[%clk 0:00:55]} 23. fxe6 {[%clk 0:01:23]}  fxe6 {[%clk 0:00:54]} 24. h4 {[%clk 0:01:10]}  d5 {[%clk 0:00:41]} 25. exd5 {[%clk 0:01:06]}  exd5 {[%clk 0:00:41]} 26. Rhe1 {[%clk 0:01:02]}  Bf6 {[%clk 0:00:33]} 27. Re2 {[%clk 0:00:46]}  Rg3 {[%clk 0:00:24]} 28. f4 {[%clk 0:00:31]}  Rh3 {[%clk 0:00:18]} 29. Bf5+ {[%clk 0:00:30]}  Kb8 {[%clk 0:00:18]} 30. Bxh3 {[%clk 0:00:30]}  d4 {[%clk 0:00:19]} 31. Red2 {[%clk 0:00:26]}  Nb3 {[%clk 0:00:15]} 32. Nxd4 {[%clk 0:00:15]}  Nxd2+ {[%clk 0:00:15]} 33. Rxd2 {[%clk 0:00:16]}  Rxd4 {[%clk 0:00:14]} 34. Rxd4 {[%clk 0:00:16]}  Bxd4 {[%clk 0:00:14]} 35. Bf5 {[%clk 0:00:16]}  h5 {[%clk 0:00:14]} 36. Bg6 {[%clk 0:00:16]}  Bf3 {[%clk 0:00:14]} 37. f5 {[%clk 0:00:17]}  Bf6 {[%clk 0:00:15]} 38. Kc2 {[%clk 0:00:14]}  Bxh4 {[%clk 0:00:15]} 39. Bf7 {[%clk 0:00:12]}  Bf6 {[%clk 0:00:16]} 40. Bd5 {[%clk 0:00:12]}  Bg4 {[%clk 0:00:16]} 41. Ne4 {[%clk 0:00:11]}  Bxf5 {[%clk 0:00:16]} 42. Kd2 {[%clk 0:00:11]}  Bxb2 {[%clk 0:00:16]} 43. Ng3 {[%clk 0:00:10]}  Bg4 {[%clk 0:00:16]} 44. Bf7 {[%clk 0:00:10]}  h4 {[%clk 0:00:16]} 45. Nf1 {[%clk 0:00:09]}  Be5 {[%clk 0:00:15]} 46. Ke3 {[%clk 0:00:10]}  h3 {[%clk 0:00:15]} 47. Kf2 {[%clk 0:00:10]}  h2 {[%clk 0:00:14]} 48. Nxh2 {[%clk 0:00:09]}  Bxh2 {[%clk 0:00:14]} 49. Be8 {[%clk 0:00:09]}  Kc7 {[%clk 0:00:14]} 50. Ke3 {[%clk 0:00:09]}  Be5 {[%clk 0:00:13]} 51. Kd3 {[%clk 0:00:09]}  Be6 {[%clk 0:00:13]} 52. Kc2 {[%clk 0:00:08]}  Kd6 {[%clk 0:00:12]} 53. Bb5 {[%clk 0:00:08]}  Kc5 {[%clk 0:00:13]} 54. Kb1 {[%clk 0:00:08]}  Kb4 {[%clk 0:00:13]} 55. Kc2 {[%clk 0:00:06]}  Bb3+ {[%clk 0:00:13]} 56. Kb1 {[%clk 0:00:07]}  Bxa4 {[%clk 0:00:14]} 57. Bxa4 {[%clk 0:00:06]}  Kxa4 {[%clk 0:00:14]} 58. Ka2 {[%clk 0:00:07]}  Kb4 {[%clk 0:00:14]} 59. Kb1 {[%clk 0:00:08]}  Kb3 {[%clk 0:00:15]} 60. Kc1 {[%clk 0:00:08]}  a4 {[%clk 0:00:15]} 61. Kb1 {[%clk 0:00:09]}  a3 {[%clk 0:00:16]} 62. Kc1 {[%clk 0:00:09]}  a2 {[%clk 0:00:16]} 0-1


[Site "https://www.chess.com"]

[Event "Titled Tuesday Blitz June 6 Early 2023"]
[White "Iskusnyh, Sergei"]
[Black "Sailer, Mike"]
[WhiteFideId "4120027"]
[BlackFideId "2012901"]
[WhiteElo "2492"]
[BlackElo "2109"]
[Result "1-0"]
[Round "1"]
[TimeControl "180+2"]
[Date "2023.06.06"]
[WhiteClock "0:00:19"]
[BlackClock "0:00:03"]
[Board "174"]

1. d4 {[%clk 0:02:57]}  d5 {[%clk 0:02:59]} 2. c4 {[%clk 0:02:57]}  c6 {[%clk 0:02:57]} 3. Nf3 {[%clk 0:02:56]}  Nf6 {[%clk 0:02:57]} 4. e3 {[%clk 0:02:55]}  a6 {[%clk 0:02:54]} 5. Bd3 {[%clk 0:02:54]}  Bg4 {[%clk 0:02:53]} 6. Nbd2 {[%clk 0:02:52]}  e6 {[%clk 0:02:53]} 7. b3 {[%clk 0:02:50]}  Nbd7 {[%clk 0:02:52]} 8. Bb2 {[%clk 0:02:50]}  Bd6 {[%clk 0:02:50]} 9. Qc2 {[%clk 0:02:48]}  O-O {[%clk 0:02:41]} 10. O-O {[%clk 0:02:34]}  c5 {[%clk 0:02:29]} 11. Ne5 {[%clk 0:02:28]}  g6 {[%clk 0:01:58]} 12. f3 {[%clk 0:01:47]}  Bf5 {[%clk 0:01:55]} 13. e4 {[%clk 0:01:46]}  dxe4 {[%clk 0:01:55]} 14. fxe4 {[%clk 0:01:46]}  Bg4 {[%clk 0:01:41]} 15. Nxd7 {[%clk 0:01:32]}  Nxd7 {[%clk 0:01:29]} 16. e5 {[%clk 0:01:27]}  Be7 {[%clk 0:01:15]} 17. d5 {[%clk 0:01:24]}  Bg5 {[%clk 0:00:56]} 18. Ne4 {[%clk 0:01:22]}  Bf5 {[%clk 0:00:48]} 19. Rae1 {[%clk 0:01:09]}  Bh6 {[%clk 0:00:38]} 20. Nd6 {[%clk 0:00:56]}  Rb8 {[%clk 0:00:29]} 21. Bxf5 {[%clk 0:00:52]}  gxf5 {[%clk 0:00:27]} 22. Qd3 {[%clk 0:00:34]}  Qg5 {[%clk 0:00:16]} 23. Rf3 {[%clk 0:00:26]}  Qd2 {[%clk 0:00:13]} 24. Qxd2 {[%clk 0:00:20]}  Bxd2 {[%clk 0:00:11]} 25. Re2 {[%clk 0:00:20]}  Bh6 {[%clk 0:00:08]} 26. Rg3+ {[%clk 0:00:20]}  Kh8 {[%clk 0:00:07]} 27. Nxf7+ {[%clk 0:00:20]}  Rxf7 {[%clk 0:00:05]} 28. dxe6 {[%clk 0:00:21]}  Rg7 {[%clk 0:00:03]} 29. exd7 {[%clk 0:00:19]} 1-0


[Site "https://www.chess.com"]

[Event "Titled Tuesday Blitz June 6 Early 2023"]
[White "Afanasieva, Alexandra"]
[Black "Terletsky, Oleg"]
[WhiteFideId "34126926"]
[BlackFideId "14116774"]
[WhiteElo "1736"]
[BlackElo "2126"]
[Result "1-0"]
[Round "1"]
[TimeControl "180+2"]
[Date "2023.06.06"]
[WhiteClock "0:01:28"]
[BlackClock "0:00:59"]
[Board "179"]

1. e4 {[%clk 0:02:58]}  e5 {[%clk 0:02:59]} 2. Nf3 {[%clk 0:02:59]}  Nc6 {[%clk 0:02:59]} 3. Bb5 {[%clk 0:02:59]}  a6 {[%clk 0:02:59]} 4. Ba4 {[%clk 0:03:00]}  Nf6 {[%clk 0:02:59]} 5. O-O {[%clk 0:03:00]}  Be7 {[%clk 0:03:00]} 6. Re1 {[%clk 0:03:01]}  b5 {[%clk 0:02:58]} 7. Bb3 {[%clk 0:03:01]}  d6 {[%clk 0:02:59]} 8. c3 {[%clk 0:03:01]}  O-O {[%clk 0:02:59]} 9. h3 {[%clk 0:03:01]}  Bb7 {[%clk 0:02:59]} 10. d4 {[%clk 0:02:57]}  Re8 {[%clk 0:02:59]} 11. Ng5 {[%clk 0:02:43]}  Rf8 {[%clk 0:02:59]} 12. Nf3 {[%clk 0:02:43]}  h6 {[%clk 0:02:59]} 13. Nbd2 {[%clk 0:02:38]}  Re8 {[%clk 0:02:57]} 14. Nf1 {[%clk 0:02:37]}  Bf8 {[%clk 0:02:58]} 15. Ng3 {[%clk 0:02:34]}  Qd7 {[%clk 0:02:58]} 16. Nh4 {[%clk 0:02:14]}  d5 {[%clk 0:02:34]} 17. exd5 {[%clk 0:01:59]}  Nxd5 {[%clk 0:02:32]} 18. Nhf5 {[%clk 0:01:54]}  exd4 {[%clk 0:01:38]} 19. Rxe8 {[%clk 0:01:37]}  Rxe8 {[%clk 0:01:38]} 20. Qg4 {[%clk 0:01:37]}  Re1+ {[%clk 0:01:30]} 21. Kh2 {[%clk 0:01:38]}  Kh8 {[%clk 0:01:25]} 22. Bxh6 {[%clk 0:01:35]}  gxh6 {[%clk 0:01:17]} 23. Rxe1 {[%clk 0:01:35]}  dxc3 {[%clk 0:01:00]} 24. Bxd5 {[%clk 0:01:27]}  Qxd5 {[%clk 0:00:59]} 25. Re8 {[%clk 0:01:28]} 1-0


[Site "https://www.chess.com"]